[Event "FIDE WYCC Top Boards Girls 2023"]
[Site "Montesilvano"]
[Date "2023.11.24"]
[Round "11.9"]
[White "Trunz, Michelle"]
[Black "Wang, Chuqiao"]
[Result "0-1"]
[ECO "E46"]
[WhiteElo "1997"]
[BlackElo "2215"]
[Annotator "RC"]
[PlyCount "140"]
[EventDate "2023.11.13"]
[EventType "swiss"]
[EventCountry "ITA"]
[SourceTitle "playchess.com"]
[Source "ChessBase"]
[SourceQuality "1"]
[TimeControl "40/5400+30:1800+30"]

1. d4 {[%emt 0:00:02]} Nf6 {[%emt 0:00:08]} 2. c4 {[%emt 0:00:05]} e6 {[%emt 0:00:06]} 3. Nc3 {[%emt 0:00:07]} Bb4 {[%emt 0:00:12]} 4. e3 {[%emt 0:00:04]} O-O {[%emt 0:00:17]} 5. Nge2 {[%emt 0:00:04]} d5 {[%emt 0:00:07]} 6. a3 {[%emt 0:00:32]} Be7 {[%emt 0:00:04]} 7. cxd5 {[%emt 0:00:58]} exd5 {[%emt 0:00:11]} 8. Nf4 {[%emt 0:02:39]} c6 {[%emt 0:01:31]} 9. Bd3 {[%emt 0:02:13]} a5 {[%emt 0:01:19]} 10. O-O {[%emt 0:00:49]} Na6 {[%emt 0:00:52]} 11. Bd2 {[%emt 0:03:46]} Nc7 {[%emt 0:00:32]} 12. Rc1 {[%emt 0:05:13]} Bd6 {[%emt 0:03:10]} 13. Nce2 {[%emt 0:02:54]} Re8 {[%emt 0:11:12]} 14. Ng3 {[%emt 0:04:46]} Ne4 {[%emt 0:05:07]} 15. Nxe4 {[%emt 0:02:58]} dxe4 {[%emt 0:00:04]} 16. Bc4 {[%emt 0:00:39]} Bxf4 {[%emt 0:02:04]} 17. exf4 {[%emt 0:00:22]} Qxd4 {[%emt 0:04:44]} 18. Qb3 {[%emt 0:05:44]} Be6 {[%emt 0:18:10]} 19. Be3 {[%emt 0:03:53]} Bxc4 {[%emt 0:01:16]} 20. Qxb7 {[%emt 0:07:15]} Qd5 {[%emt 0:01:36]} 21. Rfd1 {[%emt 0:01:53]} Qh5 {[%emt 0:02:21]} 22. Qxc7 {[%emt 0:04:36]} Bd5 {[%emt 0:00:04]} 23. Rd2 {[%emt 0:01:51]} a4 {[%emt 0:01:32]} 24. Rc5 {[%emt 0:03:18]} Rec8 {[%emt 0:06:04]} 25. Ra5 {[%emt 0:11:37]} Rab8 {[%emt 0:02:21]} 26. Qe5 {[%emt 0:00:22]} Qxe5 {[%emt 0:01:38]} 27. fxe5 {[%emt 0:00:03]} Bb3 {[%emt 0:00:05]} 28. Rc5 {[%emt 0:05:02]} Ra8 {[%emt 0:03:22]} 29. Kf1 {[%emt 0:01:32]} Kf8 {[%emt 0:00:23]} 30. Ke2 {[%emt 0:05:30]} Bd5 {[%emt 0:01:24]} 31. g3 {[%emt 0:04:49]} Ke7 {[%emt 0:00:24]} 32. Bd4 {[%emt 0:00:33]} Ke6 {[%emt 0:00:28]} 33. Bc3 {[%emt 0:00:48]} Rcb8 {[%emt 0:00:53]} 34. Ra5 {[%emt 0:04:27]} Rxa5 {[%emt 0:01:12]} 35. Bxa5 {[%emt 0:00:03]} g5 {[%emt 0:01:20]} 36. Bc3 {[%emt 0:01:31]} c5 {[%emt 0:00:28]} 37. Ke3 {[%emt 0:01:11]} Rg8 {[%emt 0:00:50]} 38. h3 {[%emt 0:01:07]} Rg6 {[%emt 0:00:50]} 39. Rd1 {[%emt 0:01:41]} Rh6 {[%emt 0:00:31]} 40. Rh1 {[%emt 0:00:00]} Bc4 {[%emt 0:00:00]} 41. Rh2 {[%emt 0:06:23]} g4 {[%emt 0:04:34]} 42. h4 {[%emt 0:00:14]} Rh5 {[%emt 0:00:08]} 43. Kxe4 {[%emt 0:04:30]} Bd5+ {[%emt 0:00:17]} 44. Kd3 {[%emt 0:02:33]} Kf5 {[%emt 0:01:34]} 45. Bd2 {[%emt 0:05:12]} Bf3 {[%emt 0:01:18]} 46. Bf4 {[%emt 0:01:33]} f6 {[%emt 0:00:44]} 47. exf6 {[%emt 0:02:32]} Kxf6 {[%emt 0:00:01]} 48. Bg5+ {[%emt 0:00:44]} Ke6 {[%emt 0:01:07]} 49. Kc4 {[%emt 0:01:19]} Kd6 {[%emt 0:02:48]} 50. b4 {[%emt 0:02:04]} cxb4 {[%emt 0:02:49]} 51. Kxb4 {[%emt 0:00:16]} Kd5 {[%emt 0:00:13]} 52. Kc3 {[%emt 0:02:28]} Kc6 {[%emt 0:02:08]} 53. Kc4 {[%emt 0:01:17]} Kd6 {[%emt 0:00:31]} 54. Kd4 {[%emt 0:00:21]} h6 {[%emt 0:00:27]} 55. Bf4+ {[%emt 0:00:20]} Kc6 {[%emt 0:00:03]} 56. Be3 {[%emt 0:01:08]} Rd5+ {[%emt 0:00:06]} 57. Kc4 {[%emt 0:00:28]} h5 {[%emt 0:00:04]} 58. Kb4 {[%emt 0:00:21]} Rb5+ {[%emt 0:00:18]} 59. Kc4 {[%emt 0:00:23]} Rb3 {[%emt 0:00:11]} 60. Bc1 {[%emt 0:00:29]} Rb1 {[%emt 0:00:23]} 61. Bd2 {[%emt 0:00:28]} Kd6 {[%emt 0:00:30]} 62. Bb4+ {[%emt 0:05:23]} Ke5 {[%emt 0:00:10]} 63. Kb5 {[%emt 0:01:00]} Kd4 {[%emt 0:00:25]} 64. Kxa4 {[%emt 0:00:14]} Kd3 {[%emt 0:00:02]} 65. Kb5 {[%emt 0:00:15]} Ke2 {[%emt 0:00:04]} 66. Kc5 {[%emt 0:00:56]} Kf1 {[%emt 0:00:04]} 67. Kd4 {[%emt 0:00:15]} Kg1 {[%emt 0:00:05]} 68. Ke5 {[%emt 0:01:05]} Kxh2 {[%emt 0:00:05]} 69. Kf4 {[%emt 0:00:15]} Kg2 {[%emt 0:00:03]} 70. Bc5 {[%emt 0:00:17]} Rb5 {[%emt 0:00:05]} 0-1

[Event "FIDE WYCC Top Boards Girls 2023"]
[Site "Montesilvano"]
[Date "2023.11.24"]
[Round "11.10"]
[White "Shvedova, Alexandra"]
[Black "Nurmanova, Alua"]
[Result "0-1"]
[ECO "E92"]
[WhiteElo "2170"]
[BlackElo "2367"]
[Annotator "RC"]
[PlyCount "80"]
[EventDate "2023.11.13"]
[EventType "swiss"]
[EventCountry "ITA"]
[SourceTitle "playchess.com"]
[Source "ChessBase"]
[SourceQuality "1"]
[TimeControl "40/5400+30:1800+30"]

1. d4 {[%emt 0:00:03]} Nf6 {[%emt 0:00:35]} 2. c4 {[%emt 0:00:07]} g6 {[%emt 0:00:12]} 3. Nc3 {[%emt 0:00:19]} Bg7 {[%emt 0:00:08]} 4. e4 {[%emt 0:00:07]} d6 {[%emt 0:00:05]} 5. Nf3 {[%emt 0:00:06]} O-O {[%emt 0:00:26]} 6. Be2 {[%emt 0:00:26]} e5 {[%emt 0:04:04]} 7. Be3 {[%emt 0:00:21]} exd4 {[%emt 0:07:37]} 8. Nxd4 {[%emt 0:00:07]} Re8 {[%emt 0:00:03]} 9. f3 {[%emt 0:00:07]} c6 {[%emt 0:00:08]} 10. Bf2 {[%emt 0:00:06]} d5 {[%emt 0:01:05]} 11. exd5 {[%emt 0:00:09]} cxd5 {[%emt 0:00:05]} 12. O-O {[%emt 0:00:06]} Nc6 {[%emt 0:01:45]} 13. c5 {[%emt 0:00:26]} Nh5 {[%emt 0:01:55]} 14. Qd2 {[%emt 0:03:43]} Be5 {[%emt 0:01:17]} 15. g3 {[%emt 0:12:14]} Ng7 {[%emt 0:12:26]} 16. Bb5 {[%emt 0:18:21]} Bd7 {[%emt 0:24:38]} 17. Rfd1 {[%emt 0:17:05]} Nxd4 {[%emt 0:08:32]} 18. Bxd4 {[%emt 0:00:07]} Bc6 {[%emt 0:00:13]} 19. a4 {[%emt 0:22:14]} a6 {[%emt 0:14:08]} 20. Bf1 {[%emt 0:04:33]} Bxd4+ {[%emt 0:05:50]} 21. Qxd4 {[%emt 0:00:06]} Nf5 {[%emt 0:00:08]} 22. Qf2 {[%emt 0:00:15]} d4 {[%emt 0:00:37]} 23. Ne2 {[%emt 0:02:41]} Qd5 {[%emt 0:00:37]} 24. Nxd4 {[%emt 0:01:36]} Ne3 {[%emt 0:02:33]} 25. Rd2 {[%emt 0:01:49]} Nxf1 {[%emt 0:01:04]} 26. Kxf1 {[%emt 0:01:37]} Qc4+ {[%emt 0:01:48]} 27. Kg1 {[%emt 0:03:54]} Bxa4 {[%emt 0:00:25]} 28. Ne2 {[%emt 0:02:38]} Rad8 {[%emt 0:00:39]} 29. Rxd8 {[%emt 0:00:47]} Rxd8 {[%emt 0:00:01]} 30. Nc3 {[%emt 0:00:09]} Bc6 {[%emt 0:00:14]} 31. Re1 {[%emt 0:03:33]} Rd4 {[%emt 0:04:10]} 32. Kg2 {[%emt 0:00:27]} a5 {[%emt 0:01:14]} 33. Re3 {[%emt 0:02:05]} a4 {[%emt 0:01:45]} 34. Nb1 {[%emt 0:03:07]} Qxc5 {[%emt 0:00:46]} 35. Na3 {[%emt 0:00:51]} Kg7 {[%emt 0:00:49]} 36. Nc2 {[%emt 0:00:58]} Rd7 {[%emt 0:01:50]} 37. Ne1 {[%emt 0:00:22]} Rd1 {[%emt 0:00:53]} 38. Nd3 {[%emt 0:00:49]} Qd4 {[%emt 0:00:11]} 39. Qe2 {[%emt 0:00:25]} Rb1 {[%emt 0:00:29]} 40. Kf2 {[%emt 0:00:00]} Bb5 {[%emt 0:00:00]} 0-1

[Event "FIDE WYCC Top Boards Girls 2023"]
[Site "Montesilvano"]
[Date "2023.11.24"]
[Round "11.11"]
[White "Khamdamova, Afruza"]
[Black "Mgeladze, Kesaria"]
[Result "1-0"]
[ECO "B35"]
[WhiteElo "2199"]
[BlackElo "2065"]
[Annotator "RC"]
[PlyCount "69"]
[EventDate "2023.11.13"]
[EventType "swiss"]
[EventCountry "ITA"]
[SourceTitle "playchess.com"]
[Source "ChessBase"]
[SourceQuality "1"]
[TimeControl "40/5400+30:1800+30"]

1. e4 {[%emt 0:01:25]} c5 {[%emt 0:00:14]} 2. Nf3 {[%emt 0:00:47]} Nc6 {[%emt 0:00:13]} 3. d4 {[%emt 0:00:11]} cxd4 {[%emt 0:00:06]} 4. Nxd4 {[%emt 0:00:03]} g6 {[%emt 0:00:09]} 5. Nc3 {[%emt 0:00:36]} Bg7 {[%emt 0:00:19]} 6. Be3 {[%emt 0:00:05]} Nf6 {[%emt 0:00:09]} 7. Bc4 {[%emt 0:00:09]} Qa5 {[%emt 0:01:12]} 8. O-O {[%emt 0:13:54]} O-O {[%emt 0:00:11]} 9. h3 {[%emt 0:03:43]} d6 {[%emt 0:01:19]} 10. Bb3 {[%emt 0:01:20]} Bd7 {[%emt 0:00:09]} 11. Re1 {[%emt 0:06:37]} Rfe8 {[%emt 0:01:58]} 12. Nf3 {[%emt 0:01:52]} Rac8 {[%emt 0:18:10]} 13. Qe2 {[%emt 0:12:01]} Nd8 {[%emt 0:24:37]} 14. Bd2 {[%emt 0:06:21]} Qb6 {[%emt 0:06:45]} 15. Rad1 {[%emt 0:00:56]} Be6 {[%emt 0:00:36]} 16. Nd5 {[%emt 0:03:20]} Nxd5 {[%emt 0:01:51]} 17. exd5 {[%emt 0:00:06]} Bd7 {[%emt 0:00:33]} 18. Be3 {[%emt 0:01:38]} Qc7 {[%emt 0:00:44]} 19. c3 {[%emt 0:04:49]} b6 {[%emt 0:03:20]} 20. Bd4 {[%emt 0:04:49]} Nb7 {[%emt 0:02:34]} 21. Bxg7 {[%emt 0:01:09]} Kxg7 {[%emt 0:00:05]} 22. Qd2 {[%emt 0:02:28]} Na5 {[%emt 0:02:10]} 23. Qd4+ {[%emt 0:01:38]} Kg8 {[%emt 0:00:33]} 24. Qh4 {[%emt 0:01:20]} Kg7 {[%emt 0:10:37]} 25. Rxe7 {[%emt 0:06:06]} Rxe7 {[%emt 0:00:13]} 26. Qxe7 {[%emt 0:00:04]} Re8 {[%emt 0:02:20]} 27. Qh4 {[%emt 0:00:06]} Nxb3 {[%emt 0:00:12]} 28. axb3 {[%emt 0:00:11]} Bf5 {[%emt 0:06:02]} 29. Nd4 {[%emt 0:01:28]} Bd7 {[%emt 0:00:21]} 30. Qf4 {[%emt 0:01:53]} Re5 {[%emt 0:01:05]} 31. Nf3 {[%emt 0:00:15]} Re8 {[%emt 0:00:35]} 32. Nd2 {[%emt 0:03:08]} Re2 {[%emt 0:03:10]} 33. Nc4 {[%emt 0:06:12]} Qc5 {[%emt 0:02:05]} 34. Nxd6 {[%emt 0:02:06]} f6 {[%emt 0:00:49]} 35. b4 {[%emt 0:00:22]} 1-0

[Event "FIDE WYCC Top Boards Girls 2023"]
[Site "Montesilvano"]
[Date "2023.11.24"]
[Round "11.12"]
[White "Piddubna, Bozhena"]
[Black "Kaliakhmet, Elnaz"]
[Result "0-1"]
[ECO "D20"]
[WhiteElo "2081"]
[BlackElo "1933"]
[Annotator "NA RC"]
[PlyCount "50"]
[EventDate "2023.11.13"]
[EventType "swiss"]
[EventCountry "ITA"]
[SourceTitle "playchess.com"]
[Source "ChessBase"]
[SourceQuality "1"]
[TimeControl "40/5400+30:1800+30"]

1. d4 {[%emt 0:01:37]} d5 {[%emt 0:00:36]} 2. c4 {[%emt 0:00:29]} dxc4 {[%emt 0:00:24]} 3. g3 {[%emt 0:01:10]} Nf6 {[%emt 0:10:26]} 4. Bg2 {[%emt 0:00:44]} e5 {[%emt 0:05:54]} 5. Nf3 {[%emt 0:27:27]} Nc6 {[%emt 0:01:31]} 6. Qa4 {[%emt 0:08:40]} exd4 {[%emt 0:01:07]} 7. Ne5 {[%emt 0:04:06]} Bd7 {[%emt 0:02:07]} 8. Nxc6 {[%emt 0:01:58]} bxc6 {[%emt 0:35:22]} 9. Bxc6 {[%emt 0:02:35]} Rb8 {[%emt 0:13:47]} 10. a3 {[%emt 0:00:24]} Rb6 {[%emt 0:05:29]} 11. Bxd7+ {[%emt 0:00:15]} Qxd7 {[%emt 0:00:00]} 12. Qxa7 {[%emt 0:02:46]} Qc6 {[%emt 0:00:03]} 13. O-O {[%emt 0:01:05]} Bc5 {[%emt 0:00:07]} 14. Qa5 {[%emt 0:01:39]} O-O {[%emt 0:00:05]} 15. Qe1 {[%emt 0:02:03]} Re8 {[%emt 0:00:01]} 16. Qd1 {[%emt 0:00:12]} Qe6 {[%emt 0:01:00]} 17. Nd2 {[%emt 0:01:48]} Qh3 {[%emt 0:04:14]} 18. Nf3 {[%emt 0:01:07]} Ng4 {[%emt 0:00:04]} 19. Qa4 {[%emt 0:01:40]} Re5 {[%emt 0:05:02]} 20. Bg5 {[%emt 0:07:59]} Rb3 {[%emt 0:02:36]} 21. Rfd1 {[%emt 0:05:43]} Bf8 {[%emt 0:03:26]} 22. Rxd4 {[%emt 0:03:26]} Rxf3 {[%emt 0:03:01]} 23. Rxg4 {[%emt 0:00:12]} Rxf2 {[%emt 0:00:13]} 24. Kxf2 {[%emt 0:01:20]} Qxh2+ {[%emt 0:00:07]} 25. Kf1 {[%emt 0:00:18]} Rxe2 {[%emt 0:00:56]} 0-1